[Event "Early-Titled-Tuesday-Blitz-August-29-2023"]
[Site "Chess.com"]
[Date "2023.08.29"]
[Round "10"]
[White "le_poisson"]
[Black "ExchangeAB"]
[Result "0-1"]
[WhiteElo "2320"]
[BlackElo "2450"]
[TimeControl "180+1"]
[EndTime "9:52:27 PDT"]
[Termination "ExchangeAB won on time"]

1. e4 {[%clk 0:03:00.9]} 1... c6 {[%clk 0:03:00.1]} 2. d4 {[%clk 0:02:59.8]}
2... d5 {[%clk 0:03:01]} 3. e5 {[%clk 0:03:00.3]} 3... Bf5 {[%clk 0:03:00.9]} 4.
h4 {[%clk 0:03:00.8]} 4... h5 {[%clk 0:03:00.7]} 5. Bd3 {[%clk 0:03:00.9]} 5...
Bxd3 {[%clk 0:03:01]} 6. Qxd3 {[%clk 0:03:01.8]} 6... e6 {[%clk 0:03:01.5]} 7.
Bg5 {[%clk 0:03:00.7]} 7... Qa5+ {[%clk 0:03:01.5]} 8. Nd2 {[%clk 0:02:33.8]}
8... Qa6 {[%clk 0:02:58.5]} 9. c4 {[%clk 0:02:23.6]} 9... Bb4 {[%clk 0:02:58.1]}
10. b3 {[%clk 0:02:18.9]} 10... Nd7 {[%clk 0:02:58.2]} 11. Nf3 {[%clk
0:02:10.8]} 11... Ne7 {[%clk 0:02:58.1]} 12. O-O {[%clk 0:02:00.6]} 12... Nf5
{[%clk 0:02:57]} 13. Rfc1 {[%clk 0:01:50.5]} 13... Nb6 {[%clk 0:02:44.6]} 14.
Nf1 {[%clk 0:01:39.5]} 14... Qa3 {[%clk 0:02:34.7]} 15. Rc2 {[%clk 0:01:13.5]}
15... dxc4 {[%clk 0:02:30]} 16. Qd1 {[%clk 0:00:59.4]} 16... cxb3 {[%clk
0:02:09.6]} 17. axb3 {[%clk 0:00:58]} 17... Qxb3 {[%clk 0:02:09.2]} 18. Rb1
{[%clk 0:00:58.4]} 18... Qa4 {[%clk 0:02:06]} 19. Qe2 {[%clk 0:00:43.7]} 19...
Nd5 {[%clk 0:01:56.1]} 20. Ra2 {[%clk 0:00:23.6]} 20... Qb5 {[%clk 0:01:55.2]}
21. Qc2 {[%clk 0:00:15.6]} 21... a5 {[%clk 0:01:53.9]} 22. N1d2 {[%clk
0:00:12.8]} 22... Nc3 {[%clk 0:01:37.1]} 23. Rxb4 {[%clk 0:00:06.3]} 23... Qxb4
{[%clk 0:01:29.4]} 24. Rb2 {[%clk 0:00:06.5]} 24... Ne2+ {[%clk 0:00:56]} 25.
Kh2 {[%clk 0:00:06.3]} 25... Nexd4 {[%clk 0:00:55.5]} 26. Nxd4 {[%clk
0:00:04.4]} 26... Nxd4 {[%clk 0:00:56.4]} 27. Qc1 {[%clk 0:00:02.6]} 27... Qa4
{[%clk 0:00:47.9]} 28. Rxb7 {[%clk 0:00:02]} 28... O-O {[%clk 0:00:46.7]} 0-1

[Event "Early-Titled-Tuesday-Blitz-August-29-2023"]
[Site "Chess.com"]
[Date "2023.08.29"]
[Round "10"]
[White "Muracle"]
[Black "wannabe2700"]
[Result "0-1"]
[WhiteElo "2491"]
[BlackElo "2645"]
[TimeControl "180+1"]
[EndTime "9:52:30 PDT"]
[Termination "wannabe2700 won on time"]

1. d4 {[%clk 0:03:00.9]} 1... Nf6 {[%clk 0:02:58.6]} 2. c4 {[%clk 0:03:01.1]}
2... g6 {[%clk 0:02:58.6]} 3. Nf3 {[%clk 0:03:01.3]} 3... Bg7 {[%clk 0:02:58.4]}
4. g3 {[%clk 0:03:01.3]} 4... O-O {[%clk 0:02:58.5]} 5. Bg2 {[%clk 0:03:01.2]}
5... c5 {[%clk 0:02:58]} 6. d5 {[%clk 0:03:01.1]} 6... b5 {[%clk 0:02:57.1]} 7.
cxb5 {[%clk 0:03:01.2]} 7... a6 {[%clk 0:02:56.3]} 8. bxa6 {[%clk 0:02:59.7]}
8... Qa5+ {[%clk 0:02:55.1]} 9. Nc3 {[%clk 0:02:58.9]} 9... Ne4 {[%clk
0:02:52.5]} 10. Bd2 {[%clk 0:02:39.6]} 10... Nxc3 {[%clk 0:02:52.3]} 11. bxc3
{[%clk 0:02:37]} 11... Bxc3 {[%clk 0:02:53.2]} 12. O-O {[%clk 0:02:35.6]} 12...
d6 {[%clk 0:02:40.7]} 13. Qc1 {[%clk 0:02:26.5]} 13... Bxd2 {[%clk 0:02:38.9]}
14. Qxd2 {[%clk 0:02:21.8]} 14... Qxd2 {[%clk 0:02:30.6]} 15. Nxd2 {[%clk
0:02:22.7]} 15... Bxa6 {[%clk 0:02:12.5]} 16. Rfe1 {[%clk 0:02:21.9]} 16... Nd7
{[%clk 0:02:12.9]} 17. e4 {[%clk 0:02:21.7]} 17... Rfb8 {[%clk 0:02:12.3]} 18.
f4 {[%clk 0:02:20.7]} 18... Rb2 {[%clk 0:02:11.3]} 19. Nf3 {[%clk 0:02:18.5]}
19... Bd3 {[%clk 0:02:04.5]} 20. a4 {[%clk 0:01:53.9]} 20... Ra5 {[%clk
0:02:04.1]} 21. e5 {[%clk 0:01:52.5]} 21... Nb6 {[%clk 0:02:01.3]} 22. exd6
{[%clk 0:01:50.6]} 22... exd6 {[%clk 0:02:02.2]} 23. Ng5 {[%clk 0:01:47]} 23...
h6 {[%clk 0:01:58.8]} 24. Ne4 {[%clk 0:00:48.1]} 24... Bxe4 {[%clk 0:01:58.3]}
25. Rxe4 {[%clk 0:00:49]} 25... c4 {[%clk 0:01:55.4]} 26. Bf1 {[%clk 0:00:46]}
26... c3 {[%clk 0:01:32.5]} 27. Bb5 {[%clk 0:00:45.5]} 27... Nxd5 {[%clk
0:01:13.6]} 28. Rc1 {[%clk 0:00:25.1]} 28... c2 {[%clk 0:01:13.6]} 29. Re2
{[%clk 0:00:19.8]} 29... Nb4 {[%clk 0:01:12.3]} 30. Kg2 {[%clk 0:00:08.6]} 30...
Ra7 {[%clk 0:01:10.2]} 31. Kf3 {[%clk 0:00:06]} 31... Rc7 {[%clk 0:01:10]} 32.
Ke3 {[%clk 0:00:05.7]} 32... Na2 {[%clk 0:01:09.7]} 33. Ree1 {[%clk 0:00:03.9]}
33... Re7+ {[%clk 0:01:00.2]} 34. Kd2 {[%clk 0:00:03.7]} 34... Rxe1 {[%clk
0:00:59.1]} 0-1

[Event "Early-Titled-Tuesday-Blitz-August-29-2023"]
[Site "Chess.com"]
[Date "2023.08.29"]
[Round "10"]
[White "ChessicallyInclined"]
[Black "Road2GM3000"]
[Result "1-0"]
[WhiteElo "2672"]
[BlackElo "2426"]
[TimeControl "180+1"]
[EndTime "9:52:33 PDT"]
[Termination "ChessicallyInclined won on time"]

1. e4 {[%clk 0:03:00.9]} 1... c5 {[%clk 0:03:00]} 2. Nf3 {[%clk 0:03:00.7]} 2...
d6 {[%clk 0:03:00.6]} 3. Bb5+ {[%clk 0:03:00.9]} 3... Nd7 {[%clk 0:02:58.4]} 4.
c4 {[%clk 0:03:01.2]} 4... Nf6 {[%clk 0:02:58.3]} 5. Nc3 {[%clk 0:03:00.6]} 5...
g6 {[%clk 0:02:57.4]} 6. d3 {[%clk 0:03:00.7]} 6... Bg7 {[%clk 0:02:58]} 7. h3
{[%clk 0:03:01.1]} 7... O-O {[%clk 0:02:58.5]} 8. Bf4 {[%clk 0:02:57.5]} 8...
Ne8 {[%clk 0:02:51.2]} 9. Qd2 {[%clk 0:02:55.2]} 9... Nc7 {[%clk 0:02:50.8]} 10.
Bxd7 {[%clk 0:02:55]} 10... Bxd7 {[%clk 0:02:50.4]} 11. Bh6 {[%clk 0:02:54.1]}
11... Ne6 {[%clk 0:02:49.4]} 12. h4 {[%clk 0:02:49.3]} 12... Nd4 {[%clk
0:02:32.7]} 13. h5 {[%clk 0:02:43]} 13... Nxf3+ {[%clk 0:01:20.2]} 14. gxf3
{[%clk 0:02:43]} 14... Bd4 {[%clk 0:01:14]} 15. Ne2 {[%clk 0:02:26.6]} 15... Re8
{[%clk 0:00:44.6]} 16. Nxd4 {[%clk 0:02:25.6]} 16... cxd4 {[%clk 0:00:45.5]} 17.
Ke2 {[%clk 0:02:00.1]} 17... e5 {[%clk 0:00:41.7]} 18. Rag1 {[%clk 0:01:58.6]}
18... Re6 {[%clk 0:00:39.7]} 19. f4 {[%clk 0:01:47.9]} 19... exf4 {[%clk
0:00:39.1]} 20. Bxf4 {[%clk 0:01:47.2]} 20... Qe7 {[%clk 0:00:29.7]} 21. f3
{[%clk 0:01:43.6]} 21... b5 {[%clk 0:00:20.2]} 22. b3 {[%clk 0:01:43.4]} 22...
a5 {[%clk 0:00:19.2]} 23. Kf2 {[%clk 0:01:32.6]} 23... a4 {[%clk 0:00:19.4]} 24.
Qb2 {[%clk 0:01:25.8]} 24... axb3 {[%clk 0:00:18]} 25. axb3 {[%clk 0:01:25.8]}
25... bxc4 {[%clk 0:00:17.8]} 26. bxc4 {[%clk 0:01:25.8]} 26... Bc6 {[%clk
0:00:11.6]} 27. Qxd4 {[%clk 0:01:14.4]} 27... Ra2+ {[%clk 0:00:11.2]} 28. Ke3
{[%clk 0:01:12.2]} 28... Qf6 {[%clk 0:00:01.6]} 29. Qxf6 {[%clk 0:01:09.7]}
29... Rxf6 {[%clk 0:00:02.3]} 30. Rb1 {[%clk 0:01:00.1]} 30... gxh5 {[%clk
0:00:01.8]} 31. Rb8+ {[%clk 0:00:53.1]} 31... Kg7 {[%clk 0:00:02.3]} 32. c5
{[%clk 0:00:52.7]} 32... dxc5 {[%clk 0:00:01.1]} 33. Be5 {[%clk 0:00:52.7]}
33... Kg6 {[%clk 0:00:01.7]} 34. Rg1+ {[%clk 0:00:52.5]} 34... Kh6 {[%clk
0:00:02.5]} 35. Bxf6 {[%clk 0:00:51.6]} 1-0

[Event "Early-Titled-Tuesday-Blitz-August-29-2023"]
[Site "Chess.com"]
[Date "2023.08.29"]
[Round "10"]
[White "biostatistician"]
[Black "GianmarcoVaR"]
[Result "1-0"]
[WhiteElo "2601"]
[BlackElo "2745"]
[TimeControl "180+1"]
[EndTime "9:52:41 PDT"]
[Termination "biostatistician won on time"]

1. d4 {[%clk 0:03:00.6]} 1... Nf6 {[%clk 0:02:59.9]} 2. Nf3 {[%clk 0:03:00.9]}
2... d5 {[%clk 0:02:59.2]} 3. c4 {[%clk 0:03:01.1]} 3... e6 {[%clk 0:02:57.6]}
4. Nc3 {[%clk 0:03:01.1]} 4... a6 {[%clk 0:02:58.1]} 5. cxd5 {[%clk 0:02:58.5]}
5... exd5 {[%clk 0:02:59]} 6. Bg5 {[%clk 0:02:58.5]} 6... Be6 {[%clk 0:02:59.5]}
7. e3 {[%clk 0:02:58.2]} 7... Nbd7 {[%clk 0:02:59.6]} 8. Bd3 {[%clk 0:02:57.5]}
8... c6 {[%clk 0:02:59.8]} 9. O-O {[%clk 0:02:57.6]} 9... Bd6 {[%clk 0:02:59.9]}
10. Rb1 {[%clk 0:02:52.1]} 10... Qc7 {[%clk 0:02:50.4]} 11. b4 {[%clk
0:02:48.7]} 11... h6 {[%clk 0:02:47.4]} 12. Bh4 {[%clk 0:02:46.7]} 12... Bg4
{[%clk 0:02:48.1]} 13. Bg3 {[%clk 0:02:46.7]} 13... Bxg3 {[%clk 0:02:43.6]} 14.
hxg3 {[%clk 0:02:47.6]} 14... h5 {[%clk 0:02:39.7]} 15. a4 {[%clk 0:02:47.3]}
15... h4 {[%clk 0:02:37.9]} 16. gxh4 {[%clk 0:02:40.6]} 16... Rxh4 {[%clk
0:02:38.8]} 17. g3 {[%clk 0:02:37.7]} 17... Rh3 {[%clk 0:02:31.7]} 18. Kg2
{[%clk 0:02:35.4]} 18... Ke7 {[%clk 0:02:30.9]} 19. Rh1 {[%clk 0:02:30.7]} 19...
Rah8 {[%clk 0:02:29.9]} 20. Rxh3 {[%clk 0:02:30.7]} 20... Bxh3+ {[%clk
0:02:30.2]} 21. Kg1 {[%clk 0:02:27.5]} 21... Bg4 {[%clk 0:02:25.6]} 22. Be2
{[%clk 0:02:25.9]} 22... Qd6 {[%clk 0:01:43.6]} 23. Nh4 {[%clk 0:02:22.6]} 23...
Qe6 {[%clk 0:01:36.8]} 24. Bxg4 {[%clk 0:02:12.6]} 24... Nxg4 {[%clk 0:01:36.3]}
25. Qf3 {[%clk 0:02:12.6]} 25... Nh6 {[%clk 0:00:50.4]} 26. Qf4 {[%clk
0:02:01.1]} 26... Qf6 {[%clk 0:00:21.6]} 27. Qxf6+ {[%clk 0:01:48.7]} 27... Nxf6
{[%clk 0:00:21.9]} 28. b5 {[%clk 0:01:42.6]} 28... cxb5 {[%clk 0:00:11]} 29.
axb5 {[%clk 0:01:43.5]} 29... a5 {[%clk 0:00:11.6]} 30. b6 {[%clk 0:01:32.1]}
30... Rc8 {[%clk 0:00:09.5]} 31. Na4 {[%clk 0:01:31.7]} 31... Rc2 {[%clk
0:00:06.3]} 32. Nc5 {[%clk 0:01:30.3]} 32... Ne4 {[%clk 0:00:02.8]} 33. Nxb7
{[%clk 0:01:21.7]} 33... Nxf2 {[%clk 0:00:02.2]} 34. Nc5 {[%clk 0:01:17.3]}
34... Nhg4 {[%clk 0:00:02.2]} 35. Rb3 {[%clk 0:00:52.6]} 35... Nh3+ {[%clk
0:00:01.2]} 36. Kf1 {[%clk 0:00:52.5]} 1-0

[Event "Early-Titled-Tuesday-Blitz-August-29-2023"]
[Site "Chess.com"]
[Date "2023.08.29"]
[Round "10"]
[White "CrazyAdvenTures"]
[Black "BlueWizzard"]
[Result "0-1"]
[WhiteElo "2691"]
[BlackElo "2897"]
[TimeControl "180+1"]
[EndTime "9:52:43 PDT"]
[Termination "BlueWizzard won by checkmate"]

1. e4 {[%clk 0:03:00.9]} 1... e5 {[%clk 0:02:57.6]} 2. Bc4 {[%clk 0:02:57.2]}
2... c6 {[%clk 0:02:55.2]} 3. d4 {[%clk 0:02:49]} 3... d5 {[%clk 0:02:51.6]} 4.
exd5 {[%clk 0:02:44.2]} 4... cxd5 {[%clk 0:02:52.5]} 5. Bb5+ {[%clk 0:02:44.4]}
5... Bd7 {[%clk 0:02:52.4]} 6. Bxd7+ {[%clk 0:02:36.3]} 6... Nxd7 {[%clk
0:02:53.3]} 7. dxe5 {[%clk 0:02:34.9]} 7... Nxe5 {[%clk 0:02:53.5]} 8. Nf3
{[%clk 0:02:35.8]} 8... Nxf3+ {[%clk 0:02:49.4]} 9. Qxf3 {[%clk 0:02:36.7]} 9...
Qe7+ {[%clk 0:02:49.7]} 10. Kd1 {[%clk 0:02:23.2]} 10... O-O-O {[%clk
0:02:36.5]} 11. Re1 {[%clk 0:02:19.1]} 11... Qd7 {[%clk 0:02:28.9]} 12. Bf4
{[%clk 0:02:14.8]} 12... Bd6 {[%clk 0:02:23.5]} 13. Qc3+ {[%clk 0:01:58.4]}
13... Kb8 {[%clk 0:02:11.6]} 14. Qxg7 {[%clk 0:01:39.9]} 14... Bxf4 {[%clk
0:01:58.8]} 15. Qxh8 {[%clk 0:01:34.3]} 15... d4 {[%clk 0:01:39.6]} 16. Nd2
{[%clk 0:00:47.2]} 16... d3 {[%clk 0:01:04.6]} 17. c3 {[%clk 0:00:35.3]} 17...
Qg4+ {[%clk 0:01:04.5]} 18. Kc1 {[%clk 0:00:33]} 18... Qxg2 {[%clk 0:00:33.9]}
19. Rd1 {[%clk 0:00:22.7]} 19... Qxf2 {[%clk 0:00:31.4]} 20. Qxh7 {[%clk
0:00:20.5]} 20... Nf6 {[%clk 0:00:27.8]} 21. Qxf7 {[%clk 0:00:05.8]} 21... Ne4
{[%clk 0:00:23.9]} 22. Qe7 {[%clk 0:00:04.6]} 22... Bxd2+ {[%clk 0:00:17.1]} 23.
Kb1 {[%clk 0:00:04.8]} 23... Bg5 {[%clk 0:00:15.9]} 24. Qxe4 {[%clk 0:00:04.5]}
24... Qc2# {[%clk 0:00:15.3]} 0-1

[Event "Early-Titled-Tuesday-Blitz-August-29-2023"]
[Site "Chess.com"]
[Date "2023.08.29"]
[Round "10"]
[White "campochess"]
[Black "jasrom"]
[Result "0-1"]
[WhiteElo "2205"]
[BlackElo "2412"]
[TimeControl "180+1"]
[EndTime "9:52:43 PDT"]
[Termination "jasrom won by resignation"]

1. Nc3 {[%clk 0:02:59]} 1... d5 {[%clk 0:02:57.4]} 2. d4 {[%clk 0:02:58.2]} 2...
Bf5 {[%clk 0:02:51.5]} 3. Bf4 {[%clk 0:02:57.8]} 3... e6 {[%clk 0:02:49.4]} 4.
e3 {[%clk 0:02:57]} 4... a6 {[%clk 0:02:47.3]} 5. Nf3 {[%clk 0:02:56.4]} 5...
Nf6 {[%clk 0:02:46.9]} 6. Nh4 {[%clk 0:02:55.2]} 6... Bg6 {[%clk 0:02:42]} 7.
Nxg6 {[%clk 0:02:52.5]} 7... hxg6 {[%clk 0:02:42.1]} 8. Ne2 {[%clk 0:02:49.2]}
8... c5 {[%clk 0:02:38.4]} 9. c3 {[%clk 0:02:48.5]} 9... Qb6 {[%clk 0:02:38.4]}
10. Qb3 {[%clk 0:02:47.6]} 10... Qxb3 {[%clk 0:02:29.6]} 11. axb3 {[%clk
0:02:47.5]} 11... Nc6 {[%clk 0:02:30]} 12. Kd2 {[%clk 0:02:45.2]} 12... Ne4+
{[%clk 0:02:28.8]} 13. Ke1 {[%clk 0:02:43.5]} 13... g5 {[%clk 0:02:20.7]} 14.
Bc7 {[%clk 0:02:38.6]} 14... Rc8 {[%clk 0:02:14.1]} 15. Bb6 {[%clk 0:02:38.2]}
15... Bd6 {[%clk 0:02:04.5]} 16. g3 {[%clk 0:02:35.5]} 16... cxd4 {[%clk
0:01:50.3]} 17. exd4 {[%clk 0:02:33.7]} 17... g4 {[%clk 0:01:27]} 18. Bg2 {[%clk
0:02:33.4]} 18... f5 {[%clk 0:01:27]} 19. Bxe4 {[%clk 0:02:30.1]} 19... dxe4
{[%clk 0:01:20.8]} 20. Kf1 {[%clk 0:02:25.6]} 20... g5 {[%clk 0:01:20.4]} 21.
Kg2 {[%clk 0:02:25.6]} 21... Kf7 {[%clk 0:01:15.3]} 22. h4 {[%clk 0:02:21.7]}
22... gxh3+ {[%clk 0:01:11.6]} 23. Rxh3 {[%clk 0:02:20.7]} 23... Rxh3 {[%clk
0:01:11.4]} 24. Kxh3 {[%clk 0:02:20.6]} 24... Rh8+ {[%clk 0:01:11.7]} 25. Kg2
{[%clk 0:02:20.7]} 25... f4 {[%clk 0:01:11.9]} 26. f3 {[%clk 0:02:07.5]} 26...
g4 {[%clk 0:01:01.8]} 27. Nxf4 {[%clk 0:01:56.6]} 27... exf3+ {[%clk 0:00:53.4]}
28. Kf2 {[%clk 0:01:56.5]} 28... Rh2+ {[%clk 0:00:23.8]} 29. Ke3 {[%clk
0:01:56.3]} 29... Ne7 {[%clk 0:00:20.3]} 30. Ke4 {[%clk 0:01:40.4]} 30... Nf5
{[%clk 0:00:19.6]} 31. Bc5 {[%clk 0:01:28.2]} 31... Nxg3+ {[%clk 0:00:17.1]} 32.
Kd3 {[%clk 0:01:26.7]} 32... Bxf4 {[%clk 0:00:15.2]} 33. Kc4 {[%clk 0:01:19.1]}
33... f2 {[%clk 0:00:14.3]} 34. d5 {[%clk 0:01:16.8]} 34... f1=Q+ {[%clk
0:00:12.6]} 35. Rxf1 {[%clk 0:01:15.2]} 35... Nxf1 {[%clk 0:00:13.5]} 36. dxe6+
{[%clk 0:01:14.9]} 36... Kxe6 {[%clk 0:00:13.4]} 37. b4 {[%clk 0:01:08.3]} 37...
b5+ {[%clk 0:00:12.8]} 38. Kd4 {[%clk 0:01:03.8]} 38... Be3+ {[%clk 0:00:12.3]}
39. Ke4 {[%clk 0:01:01.5]} 39... Bxc5 {[%clk 0:00:12.1]} 40. bxc5 {[%clk
0:01:01.7]} 40... Rf2 {[%clk 0:00:11.2]} 0-1

[Event "Early-Titled-Tuesday-Blitz-August-29-2023"]
[Site "Chess.com"]
[Date "2023.08.29"]
[Round "10"]
[White "alexrustemov"]
[Black "BrandonJacobson"]
[Result "0-1"]
[WhiteElo "2877"]
[BlackElo "3016"]
[TimeControl "180+1"]
[EndTime "9:52:46 PDT"]
[Termination "BrandonJacobson won by checkmate"]

1. d4 {[%clk 0:03:00.9]} 1... Nf6 {[%clk 0:03:00.3]} 2. c4 {[%clk 0:03:01.3]}
2... g6 {[%clk 0:03:00.3]} 3. Nf3 {[%clk 0:03:01.7]} 3... Bg7 {[%clk 0:03:00.8]}
4. g3 {[%clk 0:03:02.1]} 4... O-O {[%clk 0:03:01.1]} 5. Bg2 {[%clk 0:03:02.5]}
5... d6 {[%clk 0:03:01.6]} 6. Nc3 {[%clk 0:03:02.7]} 6... Nbd7 {[%clk 0:03:02]}
7. O-O {[%clk 0:03:00.6]} 7... e5 {[%clk 0:03:02.2]} 8. e4 {[%clk 0:03:00.9]}
8... exd4 {[%clk 0:03:02.4]} 9. Nxd4 {[%clk 0:03:00.7]} 9... Re8 {[%clk
0:03:03]} 10. h3 {[%clk 0:03:00.2]} 10... Nc5 {[%clk 0:03:03.6]} 11. Re1 {[%clk
0:03:00.4]} 11... h6 {[%clk 0:03:04.3]} 12. f3 {[%clk 0:02:59.5]} 12... Be6
{[%clk 0:03:00.6]} 13. b3 {[%clk 0:02:57.4]} 13... Nh5 {[%clk 0:03:00.7]} 14. g4
{[%clk 0:02:52]} 14... Qf6 {[%clk 0:02:20.8]} 15. Nce2 {[%clk 0:02:35.3]} 15...
Ng3 {[%clk 0:02:13.4]} 16. Be3 {[%clk 0:02:33.2]} 16... Nxe2+ {[%clk 0:02:13.3]}
17. Rxe2 {[%clk 0:02:31.4]} 17... Bd7 {[%clk 0:02:06.3]} 18. Rc1 {[%clk
0:02:10.4]} 18... h5 {[%clk 0:01:51.2]} 19. Qd2 {[%clk 0:02:09.1]} 19... hxg4
{[%clk 0:01:43]} 20. hxg4 {[%clk 0:02:09.6]} 20... Ne6 {[%clk 0:01:43.4]} 21.
Nxe6 {[%clk 0:02:01.2]} 21... Bxe6 {[%clk 0:01:44.3]} 22. g5 {[%clk 0:01:56.1]}
22... Qe7 {[%clk 0:01:44.6]} 23. Kf2 {[%clk 0:01:45.7]} 23... f5 {[%clk
0:01:26.9]} 24. gxf6 {[%clk 0:01:44.2]} 24... Bxf6 {[%clk 0:01:26.8]} 25. Rh1
{[%clk 0:01:43.2]} 25... Bh4+ {[%clk 0:01:16.5]} 26. Kf1 {[%clk 0:01:40]} 26...
Rf8 {[%clk 0:01:15.5]} 27. Bd4 {[%clk 0:01:34.5]} 27... Bf6 {[%clk 0:00:47.9]}
28. Bxf6 {[%clk 0:01:29.5]} 28... Qxf6 {[%clk 0:00:40.6]} 29. Qh6 {[%clk
0:01:28.7]} 29... Rf7 {[%clk 0:00:34]} 30. Kg1 {[%clk 0:00:58.2]} 30... Raf8
{[%clk 0:00:18.3]} 31. Rf2 {[%clk 0:00:58.5]} 31... g5 {[%clk 0:00:11.7]} 32.
Qh5 {[%clk 0:00:37.6]} 32... g4 {[%clk 0:00:12]} 33. f4 {[%clk 0:00:33.1]} 33...
g3 {[%clk 0:00:12]} 34. Rf3 {[%clk 0:00:32.8]} 34... Qd4+ {[%clk 0:00:11.6]} 35.
Kf1 {[%clk 0:00:32.5]} 35... Qd1# {[%clk 0:00:11.9]} 0-1

[Event "Early-Titled-Tuesday-Blitz-August-29-2023"]
[Site "Chess.com"]
[Date "2023.08.29"]
[Round "10"]
[White "imdvb6307"]
[Black "Zq1"]
[Result "1-0"]
[WhiteElo "2411"]
[BlackElo "2529"]
[TimeControl "180+1"]
[EndTime "9:52:50 PDT"]
[Termination "imdvb6307 won by resignation"]

1. c4 {[%clk 0:02:53.9]} 1... e6 {[%clk 0:02:59.6]} 2. Nc3 {[%clk 0:02:51.2]}
2... d5 {[%clk 0:02:59.5]} 3. cxd5 {[%clk 0:02:51.1]} 3... exd5 {[%clk 0:02:59]}
4. d4 {[%clk 0:02:51.7]} 4... c6 {[%clk 0:02:56.3]} 5. Bf4 {[%clk 0:02:48.8]}
5... Bd6 {[%clk 0:02:55.6]} 6. Bxd6 {[%clk 0:02:46.8]} 6... Qxd6 {[%clk
0:02:55.3]} 7. e3 {[%clk 0:02:47.4]} 7... Ne7 {[%clk 0:02:55.1]} 8. Bd3 {[%clk
0:02:46.1]} 8... Bf5 {[%clk 0:02:54.8]} 9. Nf3 {[%clk 0:02:42.6]} 9... O-O
{[%clk 0:02:53.6]} 10. O-O {[%clk 0:02:42.3]} 10... Nd7 {[%clk 0:02:53.6]} 11.
Rb1 {[%clk 0:02:39.6]} 11... a5 {[%clk 0:02:52.1]} 12. h3 {[%clk 0:02:27.5]}
12... Bg6 {[%clk 0:02:50.6]} 13. Qc2 {[%clk 0:01:59.9]} 13... b5 {[%clk
0:02:44.5]} 14. Rfc1 {[%clk 0:01:58.6]} 14... Nb6 {[%clk 0:02:41.6]} 15. e4
{[%clk 0:01:54.5]} 15... dxe4 {[%clk 0:02:38.7]} 16. Nxe4 {[%clk 0:01:54.4]}
16... Bxe4 {[%clk 0:02:36.5]} 17. Bxe4 {[%clk 0:01:54.1]} 17... g6 {[%clk
0:02:35.4]} 18. Qc5 {[%clk 0:01:49.1]} 18... Qxc5 {[%clk 0:02:23.2]} 19. Rxc5
{[%clk 0:01:46.2]} 19... Nbd5 {[%clk 0:02:20.1]} 20. Bxd5 {[%clk 0:01:43.9]}
20... Nxd5 {[%clk 0:02:19.7]} 21. Rxc6 {[%clk 0:01:42.2]} 21... Nb4 {[%clk
0:02:19.4]} 22. Rc5 {[%clk 0:01:42.2]} 22... Nxa2 {[%clk 0:02:17.5]} 23. Ra1
{[%clk 0:01:39]} 23... Nb4 {[%clk 0:02:14]} 24. Rxb5 {[%clk 0:01:39]} 24... Nd3
{[%clk 0:02:07.1]} 25. Ra3 {[%clk 0:01:10.5]} 25... Nf4 {[%clk 0:02:00.1]} 26.
Raxa5 {[%clk 0:01:09.2]} 26... Rxa5 {[%clk 0:01:57.9]} 27. Rxa5 {[%clk 0:01:09]}
27... Rb8 {[%clk 0:01:57.9]} 28. g3 {[%clk 0:01:03.8]} 28... Nd3 {[%clk
0:01:55.5]} 29. Ra3 {[%clk 0:00:51.3]} 29... Nxb2 {[%clk 0:01:54.6]} 30. Ne5
{[%clk 0:00:50.2]} 30... Rb7 {[%clk 0:01:43.1]} 31. h4 {[%clk 0:00:40]} 31... f6
{[%clk 0:01:39.8]} 32. Ng4 {[%clk 0:00:39.2]} 32... Kg7 {[%clk 0:01:36.5]} 33.
Ra6 {[%clk 0:00:36.7]} 33... Rf7 {[%clk 0:01:26.7]} 34. Ne3 {[%clk 0:00:31.2]}
34... Rd7 {[%clk 0:01:23.7]} 35. d5 {[%clk 0:00:25.8]} 35... Nd3 {[%clk
0:01:20.5]} 36. Kf1 {[%clk 0:00:23.6]} 36... Nb4 {[%clk 0:01:13.6]} 37. Ra5
{[%clk 0:00:23.2]} 37... Nd3 {[%clk 0:01:10.9]} 38. Rb5 {[%clk 0:00:18.9]} 38...
f5 {[%clk 0:01:07.6]} 39. Ke2 {[%clk 0:00:18.9]} 39... Ne5 {[%clk 0:01:06.9]}
40. f4 {[%clk 0:00:17.6]} 40... Nf7 {[%clk 0:01:06.8]} 41. Kd3 {[%clk
0:00:17.5]} 41... Nd6 {[%clk 0:01:04.4]} 42. Rb6 {[%clk 0:00:16.5]} 42... Ne4
{[%clk 0:01:03.9]} 43. Kd4 {[%clk 0:00:13.8]} 43... Ra7 {[%clk 0:01:03.1]} 44.
Ke5 {[%clk 0:00:11.6]} 44... Kf7 {[%clk 0:01:01.3]} 45. Nc4 {[%clk 0:00:11.2]}
45... Re7+ {[%clk 0:00:57.6]} 46. Kd4 {[%clk 0:00:11.3]} 46... Rd7 {[%clk
0:00:55.8]} 47. Ne5+ {[%clk 0:00:11.3]} 1-0